fUST/lending_fUST_20251109
["ID","MTS","AMOUNT","RATE_DAILY","PERIOD"]
[393451050,1762673434327,-1113.0,0.00025434,2]
[393451052,1762673434337,-725.0,0.00025434,2]
[393451053,1762673434346,-937.0,0.00025434,2]
[393451054,1762673434356,-540.21360703,0.00025434,2]
[393451055,1762673434366,-444.0,0.00025434,2]
[393451056,1762673434376,-500.0,0.00025473,2]
[393451057,1762673434385,-501.35539228,0.00025473,2]
[393451058,1762673434395,-501.94832767,0.00025473,2]
[393451059,1762673434405,-504.75289529,0.00025473,2]
[393451060,1762673434416,-500.0,0.00025473,2]
[393451061,1762673434426,-500.0,0.00025489,2]
[393451063,1762673434436,-500.0,0.00025489,2]
[393451064,1762673434446,-1113.0,0.00025489,2]
[393451065,1762673434455,-725.0,0.00025489,2]
[393451066,1762673434464,-937.0,0.00025489,2]
[393451067,1762673434473,-444.0,0.00025489,2]
[393451068,1762673434483,-167.282364,0.00025514,7]
[393451069,1762673434492,-500.0,0.00025544,2]
[393451070,1762673434502,-500.0,0.00025544,2]
[393451071,1762673434512,-1113.0,0.00025544,2]
[393451072,1762673434522,-725.0,0.00025544,2]
[393451074,1762673434531,-937.0,0.00025544,2]
[393451075,1762673434540,-444.0,0.00025544,2]
[393451076,1762673434550,-248.0,0.00025567,7]
[393451077,1762673434560,-576.34523821,0.00025591,2]
[393451078,1762673434569,-360.4513843,0.00025599,2]
[393451079,1762673434579,-500.0,0.00025599,2]
[393451080,1762673434589,-1113.0,0.00025599,2]
[393451081,1762673434599,-725.0,0.00025599,2]
[393451082,1762673434608,-937.0,0.00025599,2]
[393451083,1762673434618,-444.0,0.00025599,2]
[393451085,1762673434628,-1000.0,0.00025621,2]
[393451086,1762673434637,-1000.0,0.00025621,2]
[393451087,1762673434646,-30392.3020717,0.00025631,2]
[393451088,1762673434655,-153.424421,0.00025631,7]
[393451089,1762673434664,-160.0,0.00025634,2]
[393451090,1762673434673,-248.0,0.00025648,2]
[393451091,1762673434683,-500.0,0.00025653,2]
[393451092,1762673434692,-1113.0,0.00025653,2]
[393451093,1762673434701,-725.0,0.00025653,2]
[393451094,1762673434711,-937.0,0.00025653,2]
[393451096,1762673434721,-444.0,0.00025653,2]
[393451097,1762673434731,-500.0,0.00025673,2]
[393451098,1762673434741,-500.0,0.00025673,2]
[393451099,1762673434750,-503.25509055,0.00025673,2]
[393451100,1762673434760,-500.0,0.00025673,2]
[393451101,1762673434770,-395.04599487,0.00025708,2]
[393451102,1762673434780,-1113.0,0.00025708,2]
[393451103,1762673434790,-725.0,0.00025708,2]
[393451104,1762673434799,-937.0,0.00025708,2]
[393451105,1762673434809,-444.0,0.00025708,2]
[393451107,1762673434819,-248.0,0.00025713,7]
[393451108,1762673434827,-248.0,0.00025759,2]
[393451109,1762673434837,-1113.0,0.00025763,2]
[393451110,1762673434847,-725.0,0.00025763,2]
[393451111,1762673434857,-937.0,0.00025763,2]
[393451112,1762673434866,-444.0,0.00025763,2]
[393451113,1762673434877,-1113.0,0.00025818,2]
[393451114,1762673434887,-725.0,0.00025818,2]
[393451115,1762673434896,-937.0,0.00025818,2]
[393451116,1762673434906,-444.0,0.00025818,2]
[393451117,1762673434915,-1113.0,0.00025873,2]
[393451118,1762673434925,-725.0,0.00025873,2]
[393451119,1762673434935,-937.0,0.00025873,2]
[393451120,1762673434944,-444.0,0.00025873,2]
[393451121,1762673434954,-248.0,0.00025875,2]
[393451122,1762673434965,-155.0,0.0002589,7]
[393451123,1762673434974,-1113.0,0.00025927,2]
[393451124,1762673434984,-725.0,0.00025927,2]
[393451125,1762673434993,-937.0,0.00025927,2]
[393451126,1762673435003,-444.0,0.00025927,2]
[393451127,1762673435012,-248.0,0.00025934,7]
[393451128,1762673435023,-248.0,0.00025937,2]
[393451129,1762673435034,-1113.0,0.00025982,2]
[393451130,1762673435044,-725.0,0.00025982,2]
[393451131,1762673435054,-937.0,0.00025982,2]
[393451132,1762673435067,-444.0,0.00025982,2]
[393451133,1762673435079,-1015.62232191,0.00026021,2]
[393451134,1762673435088,-1000.0,0.00026021,2]
[393451135,1762673435097,-1113.0,0.00026037,2]
[393451136,1762673435107,-725.0,0.00026037,2]
[393451137,1762673435117,-937.0,0.00026037,2]
[393451138,1762673435127,-444.0,0.00026037,2]
[393451139,1762673435136,-248.0,0.00026075,2]
[393451140,1762673435146,-1113.0,0.00026092,2]
[393451141,1762673435156,-725.0,0.00026092,2]
[393451142,1762673435166,-937.0,0.00026092,2]
[393451143,1762673435175,-444.0,0.00026092,2]
[393451144,1762673435184,-248.0,0.00026098,2]
[393451145,1762673435194,-248.0,0.00026136,2]
[393451146,1762673435204,-1113.0,0.00026146,2]
[393451147,1762673435214,-725.0,0.00026146,2]
[393451148,1762673435224,-937.0,0.00026146,2]
[393451149,1762673435233,-463.0,0.00026146,2]
[393451150,1762673435242,-1500.0,0.00026168,2]
[393451151,1762673435251,-1500.0,0.00026168,2]
[393451152,1762673435261,-260.0,0.00026182,2]
[393451153,1762673435270,-1000.0,0.000262,3]
[393451154,1762673435280,-1130.18569189,0.00026201,2]
[393451155,1762673435289,-745.47865491,0.00026201,2]
[393451156,1762673435299,-952.41537164,0.00026201,2]
[393451157,1762673435308,-472.44853413,0.00026201,2]
[393451158,1762673435318,-1010.71531016,0.00026221,2]
[393451159,1762673435328,-474.38243556,0.00026221,2]
[393451160,1762673435337,-1000.0,0.00026221,2]
[393451161,1762673435347,-800.9907966,0.00026254,2]
[393451162,1762673435356,-370.0,0.00026338,2]
[393451163,1762673435365,-248.0,0.00026373,2]
[393451164,1762673435374,-6731.96,0.000265,7]
[393451165,1762673435383,-370.0,0.0002651,7]
[393451166,1762673435392,-248.0,0.00026537,2]
[393451167,1762673435402,-370.0,0.00026562,2]
[393451168,1762673435412,-511.20589223,0.00026568,2]
[393451169,1762673435422,-297.867764,0.00026676,2]
[393451170,1762673435430,-200.35475097,0.00026713,2]
[393451171,1762673435440,-509.62142044,0.00026716,2]
[393451172,1762673435449,-2000.0,0.00026716,2]
[393451173,1762673435459,-360.0,0.0002673,2]
[393451174,1762673435468,-1004.04867721,0.00026768,2]
[393451175,1762673435477,-1410.02846221,0.00026772,3]
[393451176,1762673435487,-501.34367326,0.00026863,2]
[393451177,1762673435496,-1010.5,0.00026952,2]
[393451178,1762673435506,-150.74,0.00027,30]
[393451179,1762673435516,-634.371,0.00027047,2]
[393451180,1762673435525,-1121.177,0.00027047,2]
[393451181,1762673435535,-2185.941,0.00027047,2]
[393451182,1762673435544,-413.0,0.00027047,2]
[393451183,1762673435554,-153.0,0.00027135,3]
[393451184,1762673435565,-153.0,0.00027135,3]
[393451185,1762673435574,-153.0,0.00027135,3]
[393451186,1762673435583,-301.4103805,0.00027135,3]
[393451187,1762673435593,-500.0,0.00027165,10]
[393451188,1762673435603,-500.0,0.00027165,10]
[393451189,1762673435612,-1959.1821932,0.00027264,2]
[393451190,1762673435621,-460.0,0.00027278,2]
[393451191,1762673435631,-442.48,0.00027282,16]
[393451192,1762673435640,-258.0,0.00027367,2]
[393451193,1762673435649,-2854.0,0.00027368,2]
[393451194,1762673435658,-151.0,0.00027431,3]
[393451195,1762673435667,-151.0,0.00027431,3]
[393451196,1762673435677,-151.0,0.00027431,3]
[393451197,1762673435686,-151.0,0.00027431,3]
[393451198,1762673435695,-151.0,0.00027431,3]
[393451199,1762673435705,-151.0,0.00027431,3]
[393451200,1762673435714,-151.0,0.00027431,3]
[393451201,1762673435723,-151.0,0.00027431,3]
[393451202,1762673435733,-151.0,0.00027431,3]
[393451203,1762673435748,-151.0,0.00027431,3]
[393451204,1762673435758,-151.0,0.00027431,3]
[393451205,1762673435768,-151.0,0.00027431,3]
[393451206,1762673435778,-151.0,0.00027431,3]
[393451207,1762673435788,-180.32244163,0.00027433,2]
[393451208,1762673435798,-500.0,0.00027447,5]
[393451209,1762673435808,-500.0,0.00027714,5]
[393451210,1762673435818,-560.0,0.00027826,2]
[393451211,1762673435827,-370.0,0.00027874,7]
[393451212,1762673435837,-1000.0,0.00027995,5]
[393451213,1762673435846,-2021.0,0.00028235,2]
[393451214,1762673435856,-506.68721451,0.00028262,5]
[393451215,1762673435865,-177.31522776,0.00028301,28]
[393451216,1762673435875,-1410.02846221,0.00028338,4]
[393451217,1762673435885,-900.0,0.00028356,7]
[393451218,1762673435894,-178.55319527,0.00028374,2]
[393451219,1762673435904,-370.0,0.00028378,2]
[393451220,1762673435913,-6731.96,0.000284,7]
[393451221,1762673435923,-399.66275039,0.00028492,2]
[393451222,1762673435932,-1500.0,0.00028543,5]
[393451223,1762673435942,-2142.1030356,0.00028552,2]
[393451224,1762673435952,-1328.0681923,0.00028552,2]
[393451225,1762673435962,-801.7917874,0.00028652,2]
[393451226,1762673435971,-500.0,0.00028767,2]
[393451227,1762673435981,-500.0,0.00028822,2]
[393451228,1762673435991,-500.0,0.00028877,2]
[393451229,1762673436001,-500.0,0.00028931,2]
[393451230,1762673436010,-500.0,0.00028986,2]
[393451231,1762673436019,-341.11842229,0.00029091,5]
[393451232,1762673436029,-900.0,0.00029178,7]
[393451233,1762673436039,-151.0,0.000292,11]
[393451234,1762673436049,-477.9677934,0.00029363,2]
[393451235,1762673436060,-296.3320684,0.00029363,2]
[393451236,1762673436075,-6781.4392285,0.00029372,2]
[393451237,1762673436085,-3031.51,0.00029519,2]
[393451238,1762673436095,-600.0,0.0002977,2]
[393451239,1762673436104,-1114.84,0.000299,2]
[393451240,1762673436115,-1410.02846221,0.00029903,5]
[393451241,1762673436124,-511.4278096,0.00029946,7]
[393451242,1762673436134,-900.0,0.0003,7]
[393451243,1762673436144,-833.13,0.0003,2]
[393451244,1762673436154,-2000.0,0.0003,7]
[393451245,1762673436163,-628.0,0.00030047,2]
[393451246,1762673436172,-986.0,0.00030047,2]
[393451247,1762673436183,-2166.0,0.00030047,2]
[393451248,1762673436192,-413.0,0.00030047,2]
[393451249,1762673436202,-600.0,0.0003008,2]
[393451250,1762673436211,-1513.1436211,0.00030207,2]
[393451251,1762673436221,-1109.71464361,0.0003039,2]
[393451252,1762673436231,-160.0,0.00030456,3]
[393451253,1762673436240,-161.61367163,0.00030456,5]
[393451254,1762673436250,-160.0,0.00030456,5]
[393451255,1762673436259,-173.934126,0.0003048,4]
[393451256,1762673436270,-151.0,0.000305,16]
[393451257,1762673436280,-638.76191206,0.0003079,30]
[393451258,1762673436290,-4042.01,0.00030802,2]
[393451259,1762673436299,-900.0,0.00030822,7]
[393451260,1762673436309,-350.0,0.00031,60]
[393451261,1762673436319,-181.41,0.00031,30]
[393451262,1762673436329,-6731.96,0.00031,7]
[393451263,1762673436339,-81087.80957758,0.0003101,3]
[393451264,1762673436348,-202.44,0.00031138,2]
[393451265,1762673436358,-1410.02846221,0.00031468,6]
[393451266,1762673436367,-500.0,0.00031564,7]
[393451267,1762673436377,-152.76394835,0.00031623,7]
[393451268,1762673436386,-600.0,0.00031629,30]
[393451269,1762673436395,-900.0,0.00031644,7]
[393451270,1762673436405,-151.0,0.000318,13]
[393451271,1762673436414,-500.0,0.00031953,7]
[393451272,1762673436423,-1786.31054843,0.00031999,2]
[393451273,1762673436432,-1030.0,0.00032,2]
[393451274,1762673436442,-5052.51,0.00032085,2]
[393451275,1762673436451,-900.0,0.00032466,7]
[393451276,1762673436461,-1114.84,0.000325,2]
[393451277,1762673436471,-157.0,0.00032622,14]
[393451278,1762673436481,-302.0,0.00032862,2]
[393451279,1762673436490,-302.27177,0.00032862,2]
[393451280,1762673436576,-151.55945,0.00032863,2]
[393451281,1762673436600,-500.0,0.00032876,2]
[393451282,1762673436610,-1000.0,0.00032876,2]
[393451283,1762673436619,-1000.0,0.00032876,2]
[393451284,1762673436629,-563.37,0.00032876,2]
[393451285,1762673436639,-165.00812266,0.00032884,120]
[393451286,1762673436649,-168.54,0.000329,7]
[393451287,1762673436658,-1315.67,0.00033,2]
[393451288,1762673436668,-1000.0,0.00033,2]
[393451289,1762673436678,-1000.0,0.00033,2]
[393451290,1762673436688,-1411.43849067,0.00033033,7]
[393451291,1762673436697,-410.0,0.00033047,2]
[393451292,1762673436707,-151.0,0.000331,10]
[393451293,1762673436716,-1021.43,0.0003315,14]
[393451294,1762673436726,-297.867764,0.00033165,2]
[393451295,1762673436736,-380.50132545,0.000332,117]
[393451296,1762673436745,-380.50132541,0.000332,117]
[393451297,1762673436755,-204.0,0.0003324,35]
[393451298,1762673436765,-6731.96,0.000333,14]
[393451299,1762673436774,-6063.01,0.00033369,2]
[393451300,1762673436784,-500.0,0.00033424,2]
[393451301,1762673436793,-1000.0,0.00033424,2]
[393451302,1762673436802,-1000.0,0.00033424,2]
[393451303,1762673436813,-563.37,0.00033424,2]
[393451304,1762673436823,-151.0,0.000335,10]
[393451305,1762673436833,-1021.43,0.00033698,15]
[393451306,1762673436843,-151.0,0.000339,12]
[393451307,1762673436852,-500.0,0.00033972,2]
[393451308,1762673436861,-1000.0,0.00033972,2]
[393451309,1762673436871,-1000.0,0.00033972,2]
[393451310,1762673436881,-563.37,0.00033972,2]
[393451311,1762673436890,-235.64842291,0.0003399,60]
[393451312,1762673436900,-317.0,0.00034,120]
[393451313,1762673436910,-1133.36334062,0.00034,7]
[393451314,1762673436919,-900.0,0.0003411,7]
[393451315,1762673436929,-1021.43,0.00034246,16]
[393451316,1762673436941,-151.0,0.000344,17]
[393451317,1762673436951,-500.0,0.0003452,2]
[393451318,1762673436961,-1000.0,0.0003452,2]
[393451319,1762673436971,-1000.0,0.0003452,2]
[393451320,1762673436980,-563.37,0.0003452,2]
[393451321,1762673436990,-1114.84,0.000346,14]
[393451322,1762673437000,-7073.52,0.00034652,2]
[393451323,1762673437017,-200.0,0.000347,120]
[393451324,1762673437026,-720.0,0.00034792,30]
[393451325,1762673437036,-1021.43,0.00034794,17]
[393451326,1762673437046,-371.56,0.000348,30]
[393451327,1762673437055,-151.0,0.000348,15]
[393451328,1762673437068,-200.0,0.00034979,120]
[393451329,1762673437079,-321568.9418859,0.00035,5]
[393451330,1762673437142,-472.51296616,0.00035,5]
[393451337,1762673437574,-1139.21306646,0.00024665,4]
[393451339,1762673437583,-60811.52367866,0.00035,5]
[393451347,1762673437656,-46138.12519394,0.00035,5]
[393451609,1762673446037,-997.61839259,0.0002478,2]
[393451610,1762673446047,-997.61839257,0.00028897,2]
[393451611,1762673446056,-500.0,0.00032876,2]
[393451612,1762673446066,-500.0,0.00033424,2]
[393451613,1762673446079,-893.15527421,0.00033612,2]
[393451614,1762673446089,-500.0,0.00033972,2]
[393451615,1762673446098,-500.0,0.0003452,2]
[393451616,1762673446109,-168.24,0.0003499,10]
[393451617,1762673446119,-21293.27167257,0.00035,5]
[393451657,1762674071187,310.930493,0.00013699,2]
[393451691,1762674357125,-379.73768882,0.00019786,2]
[393451692,1762674357146,-228.05564029,0.00019986,2]
[393451693,1762674436081,-395.70085285,0.00019886,2]
[393451694,1762674444087,-895.19426214,0.00019886,2]
[393451695,1762674444109,-150.0,0.00020087,2]
[393451696,1762674444131,-236.68133909,0.00020187,2]
[393451697,1762674555078,-302.66710251,0.00019966,4]
[393451698,1762674555101,-74.24915391,0.00020187,2]
[393451699,1762674555124,-177.0,0.00022087,2]
[393451700,1762674555143,-342.29541334,0.00023542,2]
[393451701,1762674555162,-784.99001591,0.00023642,2]
[393451702,1762674555182,-1000.0,0.00024,2]
[393451703,1762674555204,-143.05094668,0.00024087,2]
[393451704,1762674555230,-60.94905332,0.00024087,2]
[393451961,1762674637742,-511.48804145,0.0002484,2]
[393451963,1762674637856,-617.72726634,0.0002484,2]
[393451964,1762674637866,-145.26245397,0.00024937,2]
[393451965,1762674637878,-154.73754603,0.00024937,2]
[393451966,1762674637887,-300.0,0.00024937,2]
[393451967,1762674637896,-141.27273366,0.00024937,2]
[393451994,1762674645258,-93.9672,0.00024937,2]
[393451996,1762674645370,-964.76006634,0.00024937,2]
[393451997,1762674645380,-315.0,0.00024938,2]
[393451998,1762674645390,-500.0,0.00024938,2]
[393451999,1762674645399,-500.0,0.00024938,2]
[393452000,1762674645408,-173.22114549,0.00024938,2]
[393452001,1762674645419,-253.34037655,0.00024938,2]
[393452002,1762674645430,-500.0,0.00024938,2]
[393452003,1762674645444,-296.67933291,0.00024938,2]
[393452009,1762674646149,-203.32066709,0.00024938,2]
[393452010,1762674646159,-500.0,0.00024938,2]
[393452011,1762674646168,-500.0,0.00024938,2]
[393452012,1762674646178,-500.0,0.00024938,2]
[393452013,1762674646187,-500.0,0.00024938,2]
[393452014,1762674646197,-500.0,0.00024938,2]
[393452015,1762674646206,-500.0,0.00024938,2]
[393452016,1762674646216,-500.0,0.00024938,2]
[393452017,1762674646227,-500.0,0.00024938,2]
[393452018,1762674646236,-188.93763066,0.00024938,2]
[393452019,1762674646245,-500.0,0.00024938,2]
[393452020,1762674646255,-500.0,0.00024938,2]
[393452021,1762674646264,-500.0,0.00024938,2]
[393452022,1762674646273,-160.0,0.00024938,2]
[393452023,1762674646283,-160.0,0.00024938,2]
[393452024,1762674646292,-500.0,0.0002494,2]
[393452025,1762674646301,-507.88567602,0.0002494,2]
[393452026,1762674646311,-500.0,0.0002494,2]
[393452027,1762674646320,-500.0,0.0002494,2]
[393452028,1762674646330,-500.0,0.0002494,2]
[393452029,1762674646339,-500.0,0.0002494,2]
[393452030,1762674646349,-180.06532325,0.0002494,2]
[393452031,1762674646358,-500.0,0.00024951,2]
[393452032,1762674646367,-500.0,0.00024951,2]
[393452033,1762674646376,-383.97224377,0.00024973,2]
[393452034,1762674646385,-399.90919747,0.00025125,2]
[393452035,1762674646395,-1138.73193221,0.00025205,2]
[393452036,1762674646404,-784.99001591,0.00025207,2]
[393452037,1762674646414,-728.89537114,0.00025311,2]
[393452038,1762674646425,-446.438557,0.0002541,2]
[393452039,1762674646434,-500.0,0.0002541,2]
[393452040,1762674646443,-300.0,0.00025411,20]
[393452041,1762674646453,-300.0,0.00025411,20]
[393452042,1762674646466,-300.0,0.00025411,20]
[393452044,1762674646475,-300.0,0.00025411,20]
[393452046,1762674646485,-300.0,0.00025411,20]
[393452047,1762674646494,-300.0,0.00025411,20]
[393452048,1762674646505,-300.0,0.00025411,20]
[393452049,1762674646514,-300.0,0.00025411,20]
[393452050,1762674646524,-300.0,0.00025411,20]
[393452051,1762674646535,-300.0,0.00025411,20]
[393452052,1762674646544,-300.0,0.00025411,20]
[393452053,1762674646554,-300.0,0.00025411,20]
[393452054,1762674646564,-300.0,0.00025411,20]
[393452055,1762674646573,-300.0,0.00025411,20]
[393452056,1762674646582,-300.0,0.00025411,20]
[393452057,1762674646591,-180.04815172,0.00025903,2]
[393452058,1762674646601,-600.0,0.00025918,20]
[393452059,1762674646610,-160.0,0.0002605,2]
[393452060,1762674646619,-231.0,0.00026087,2]
[393452061,1762674646629,-728.89537113,0.00026369,2]
[393452062,1762674646638,-260.0,0.00026598,2]
[393452063,1762674646647,-310.930493,0.00026676,2]
[393452064,1762674646657,-784.99001591,0.00026772,3]
[393452065,1762674646666,-666.17,0.00026926,2]
[393452066,1762674646675,-420.0,0.00027017,2]
[393452067,1762674646685,-1200.0,0.00027139,2]
[393452068,1762674646694,-360.0,0.00027146,2]
[393452069,1762674646703,-728.89537113,0.00027428,2]
[393452070,1762674646713,-460.0,0.00027694,2]
[393452071,1762674646722,-628.0,0.00027741,2]
[393452072,1762674646733,-2166.0,0.00027741,2]
[393452073,1762674646742,-258.0,0.00028087,2]
[393452074,1762674646751,-1332.33,0.00028209,2]
[393452075,1762674646760,-560.0,0.00028242,2]
[393452076,1762674646770,-784.99001591,0.00028338,4]
[393452077,1762674646779,-243.31995112,0.00028338,4]
[393452078,1762674646788,-728.89537113,0.00028486,2]
[393452079,1762674646798,-720.0,0.0002851,30]
[393452080,1762674646808,-151.0,0.00028767,2]
[393452081,1762674646818,-660.0,0.0002879,2]
[393452082,1762674646827,-353.984,0.00028822,21]
[393452083,1762674646836,-1129.21530777,0.00028948,2]
[393452084,1762674646846,-54989.8204376,0.00028976,2]
[393452085,1762674646855,-500.0,0.00028986,2]
[393452086,1762674646865,-151.0,0.00028986,2]
[393452087,1762674646874,-151.0,0.00028986,2]
[393452088,1762674646884,-500.0,0.00028986,2]
[393452089,1762674646893,-500.0,0.00028986,2]
[393452090,1762674646902,-500.0,0.00028986,2]
[393452091,1762674646911,-500.0,0.00028986,2]
[393452092,1762674646922,-500.0,0.00028986,2]
[393452093,1762674646931,-500.0,0.00028986,2]
[393452094,1762674647069,-500.0,0.00028986,2]
[393452095,1762674647084,-500.0,0.00028986,2]
[393452096,1762674647094,-151.0,0.00028986,2]
[393452097,1762674647104,-274.64015412,0.00028986,2]
[393452098,1762674647114,-500.0,0.00028986,2]
[393452099,1762674647124,-500.0,0.00028986,2]
[393452100,1762674647134,-151.0,0.00028986,2]
[393452101,1762674647144,-626.0,0.00028986,2]
[393452102,1762674647153,-151.0,0.00028986,2]
[393452103,1762674647162,-54989.8204376,0.00029021,2]
[393452104,1762674647174,-500.0,0.00029041,2]
[393452105,1762674647185,-222.92403222,0.00029041,2]
[393452106,1762674647194,-151.0,0.00029041,2]
[393452107,1762674647204,-500.0,0.00029041,2]
[393452108,1762674647213,-526.42065153,0.00029041,2]
[393452109,1762674647222,-500.0,0.00029041,2]
[393452110,1762674647232,-500.0,0.00029041,2]
[393452111,1762674647241,-500.0,0.00029041,2]
[393452112,1762674647251,-500.0,0.00029041,2]
[393452113,1762674647261,-500.0,0.00029041,2]
[393452114,1762674647271,-507.49009761,0.00029041,2]
[393452115,1762674647280,-151.0,0.00029041,2]
[393452116,1762674647290,-500.0,0.00029041,2]
[393452117,1762674647299,-500.0,0.00029041,2]
[393452118,1762674647309,-151.0,0.00029041,2]
[393452119,1762674647319,-626.0,0.00029041,2]
[393452120,1762674647328,-267.0,0.00029041,2]
[393452121,1762674647337,-264.09545703,0.00029096,2]
[393452122,1762674647347,-151.0,0.00029096,2]
[393452123,1762674647356,-500.0,0.00029096,2]
[393452124,1762674647365,-335.53244897,0.00029096,2]
[393452125,1762674647375,-500.0,0.00029096,2]
[393452126,1762674647384,-500.0,0.00029096,2]
[393452127,1762674647394,-500.0,0.00029096,2]
[393452128,1762674647403,-500.0,0.00029096,2]
[393452129,1762674647414,-151.0,0.00029096,2]
[393452130,1762674647425,-500.0,0.00029096,2]
[393452131,1762674647434,-582.0,0.00029096,2]
[393452132,1762674647444,-151.0,0.00029096,2]
[393452133,1762674647454,-626.0,0.00029096,2]
[393452134,1762674647467,-4039.17,0.000291,7]
[393452135,1762674647478,-223.77797558,0.0002915,2]
[393452136,1762674647488,-500.0,0.0002915,2]
[393452137,1762674647498,-500.0,0.0002915,2]
[393452138,1762674647509,-500.0,0.0002915,2]
[393452139,1762674647518,-500.0,0.0002915,2]
[393452140,1762674647527,-500.0,0.0002915,2]
[393452141,1762674647538,-151.0,0.0002915,2]
[393452142,1762674647547,-500.0,0.0002915,2]
[393452143,1762674647557,-237.40801189,0.0002915,2]
[393452144,1762674647566,-626.0,0.0002915,2]
[393452145,1762674647575,-500.0,0.00029205,2]
[393452146,1762674647585,-500.0,0.00029205,2]
[393452147,1762674647594,-500.0,0.00029205,2]
[393452148,1762674647603,-500.0,0.00029205,2]
[393452149,1762674647613,-500.0,0.00029205,2]
[393452150,1762674647623,-233.51003641,0.00029205,2]
[393452151,1762674647633,-500.0,0.00029205,2]
[393452152,1762674647642,-626.0,0.00029205,2]
[393452153,1762674647652,-54989.8204376,0.00029243,2]
[393452154,1762674647661,-500.0,0.0002926,2]
[393452155,1762674647671,-500.0,0.0002926,2]
[393452156,1762674647681,-500.0,0.0002926,2]
[393452157,1762674647690,-500.0,0.0002926,2]
[393452158,1762674647700,-500.0,0.0002926,2]
[393452159,1762674647710,-500.0,0.0002926,2]
[393452160,1762674647719,-626.0,0.0002926,2]
[393452161,1762674647729,-500.0,0.00029262,2]
[393452162,1762674647738,-500.0,0.00029262,2]
[393452163,1762674647747,-500.0,0.00029262,2]
[393452164,1762674647757,-587.0,0.0002927,2]
[393452165,1762674647767,-260.96628988,0.00029273,5]
[393452166,1762674647777,-506.0091923,0.00029273,5]
[393452167,1762674647786,-500.0,0.00029273,5]
[393452168,1762674647796,-168.06325312,0.00029273,5]
[393452169,1762674647805,-500.0,0.00029273,5]
[393452170,1762674647814,-54989.8204376,0.00029305,2]
[393452171,1762674647824,-500.0,0.00029315,2]
[393452172,1762674647833,-500.0,0.00029315,2]
[393452173,1762674647842,-500.0,0.00029315,2]
[393452174,1762674647851,-368.81952208,0.00029315,2]
[393452175,1762674647860,-500.0,0.00029315,2]
[393452176,1762674647869,-500.0,0.00029315,2]
[393452177,1762674647878,-626.0,0.00029315,2]
[393452178,1762674647887,-760.0,0.00029338,2]
[393452179,1762674647896,-595.64124514,0.0002937,2]
[393452180,1762674647905,-500.0,0.0002937,2]
[393452181,1762674647914,-500.0,0.0002937,2]
[393452182,1762674647924,-500.0,0.0002937,2]
[393452183,1762674647933,-500.0,0.0002937,2]
[393452184,1762674647943,-626.0,0.0002937,2]
[393452185,1762674647959,-500.0,0.00029373,5]
[393452186,1762674647969,-595.22919645,0.00029424,2]
[393452187,1762674647978,-500.0,0.00029424,2]
[393452188,1762674647987,-500.0,0.00029424,2]
[393452189,1762674647996,-401.41899896,0.00029424,2]
[393452190,1762674648005,-626.0,0.00029424,2]
[393452191,1762674648015,-500.0,0.00029479,2]
[393452192,1762674648024,-500.0,0.00029479,2]
[393452193,1762674648034,-626.0,0.00029479,2]